[Event "Titled Tuesday Blitz March 15 Late 2022"]
[White "Winkels, Marcel"]
[Black "Ashiev, Eduard"]
[WhiteFideId "1003887"]
[BlackFideId "4130090"]
[WhiteElo "1900"]
[BlackElo "2004"]
[Result "0-1"]
[Round "09"]
[TimeControl "180+1"]
[Date "2022.03.16"]
[WhiteClock "0:00:01"]
[BlackClock "0:00:15"]

1. Nf3 {[%clk 0:02:55]}  d5 {[%clk 0:02:58]} 2. b3 {[%clk 0:02:56]}  Nf6 {[%clk 0:02:58]} 3. Bb2 {[%clk 0:02:56]}  e6 {[%clk 0:02:58]} 4. e3 {[%clk 0:02:57]}  c5 {[%clk 0:02:57]} 5. Bb5+ {[%clk 0:02:55]}  Bd7 {[%clk 0:02:56]} 6. Bxd7+ {[%clk 0:02:53]}  Nbxd7 {[%clk 0:02:55]} 7. O-O {[%clk 0:02:52]}  Bd6 {[%clk 0:02:52]} 8. d4 {[%clk 0:02:48]}  O-O {[%clk 0:02:51]} 9. Nbd2 {[%clk 0:02:47]}  Rc8 {[%clk 0:02:43]} 10. Qe2 {[%clk 0:02:42]}  cxd4 {[%clk 0:02:41]} 11. Nxd4 {[%clk 0:02:41]}  e5 {[%clk 0:02:08]} 12. Nb5 {[%clk 0:02:09]}  Bb8 {[%clk 0:01:57]} 13. Rac1 {[%clk 0:01:51]}  a6 {[%clk 0:01:51]} 14. Na3 {[%clk 0:01:50]}  Re8 {[%clk 0:01:37]} 15. Nf3 {[%clk 0:01:31]}  e4 {[%clk 0:01:27]} 16. Nd4 {[%clk 0:01:30]}  Ne5 {[%clk 0:01:24]} 17. c4 {[%clk 0:01:15]}  Nd3 {[%clk 0:01:11]} 18. Rc2 {[%clk 0:01:07]}  Qd6 {[%clk 0:01:03]} 19. g3 {[%clk 0:00:56]}  Qd7 {[%clk 0:00:56]} 20. Kg2 {[%clk 0:00:51]}  Ng4 {[%clk 0:00:47]} 21. h3 {[%clk 0:00:45]}  Nge5 {[%clk 0:00:41]} 22. cxd5 {[%clk 0:00:40]}  b5 {[%clk 0:00:29]} 23. Rxc8 {[%clk 0:00:18]}  Rxc8 {[%clk 0:00:26]} 24. Nc6 {[%clk 0:00:17]}  Nxc6 {[%clk 0:00:24]} 25. dxc6 {[%clk 0:00:16]}  Rxc6 {[%clk 0:00:24]} 26. Bd4 {[%clk 0:00:16]}  Rh6 {[%clk 0:00:23]} 27. g4 {[%clk 0:00:14]}  Qd8 {[%clk 0:00:19]} 28. Rh1 {[%clk 0:00:12]}  f5 {[%clk 0:00:18]} 29. Nc2 {[%clk 0:00:08]}  Rg6 {[%clk 0:00:17]} 30. Ba1 {[%clk 0:00:04]}  Qd7 {[%clk 0:00:16]} 31. Nd4 {[%clk 0:00:03]}  fxg4 {[%clk 0:00:16]} 32. hxg4 {[%clk 0:00:02]}  Rxg4+ {[%clk 0:00:16]} 33. Kf1 {[%clk 0:00:02]}  Rg6 {[%clk 0:00:16]} 34. Rg1 {[%clk 0:00:02]}  Rxg1+ {[%clk 0:00:15]} 35. Kxg1 {[%clk 0:00:01]}  Qh3 {[%clk 0:00:15]} 0-1


[Site "https://www.chess.com"]

[Event "Titled Tuesday Blitz March 15 Late 2022"]
[White "Zaksaite, Salomeja"]
[Black "Estrada Nieto, Julian"]
[WhiteFideId "12801496"]
[BlackFideId "5101018"]
[WhiteElo "1953"]
[BlackElo "2246"]
[Result "0-1"]
[Round "09"]
[TimeControl "180+1"]
[Date "2022.03.16"]
[WhiteClock "0:00:01"]
[BlackClock "0:00:04"]

1. e4 {[%clk 0:03:00]}  e5 {[%clk 0:02:59]} 2. Nf3 {[%clk 0:02:58]}  Nc6 {[%clk 0:02:59]} 3. Bb5 {[%clk 0:02:58]}  a6 {[%clk 0:02:57]} 4. Ba4 {[%clk 0:02:58]}  Nf6 {[%clk 0:02:58]} 5. O-O {[%clk 0:02:57]}  Be7 {[%clk 0:02:57]} 6. c3 {[%clk 0:02:55]}  O-O {[%clk 0:02:50]} 7. Re1 {[%clk 0:02:55]}  b5 {[%clk 0:02:49]} 8. Bc2 {[%clk 0:02:48]}  d6 {[%clk 0:02:48]} 9. h3 {[%clk 0:02:48]}  Bb7 {[%clk 0:02:48]} 10. d4 {[%clk 0:02:47]}  Re8 {[%clk 0:02:47]} 11. Nbd2 {[%clk 0:02:47]}  h6 {[%clk 0:02:43]} 12. Nf1 {[%clk 0:02:47]}  Bf8 {[%clk 0:02:42]} 13. Ng3 {[%clk 0:02:47]}  g6 {[%clk 0:02:28]} 14. Be3 {[%clk 0:02:43]}  Bg7 {[%clk 0:02:16]} 15. Qd2 {[%clk 0:02:41]}  Kh7 {[%clk 0:02:08]} 16. Rad1 {[%clk 0:02:39]}  Na5 {[%clk 0:01:45]} 17. dxe5 {[%clk 0:02:25]}  Nc4 {[%clk 0:01:44]} 18. Qc1 {[%clk 0:02:18]}  Nxe5 {[%clk 0:01:43]} 19. Nxe5 {[%clk 0:02:14]}  Rxe5 {[%clk 0:01:42]} 20. f4 {[%clk 0:02:11]}  Re8 {[%clk 0:01:39]} 21. e5 {[%clk 0:02:11]}  Nd5 {[%clk 0:01:34]} 22. exd6 {[%clk 0:01:57]}  Qxd6 {[%clk 0:01:24]} 23. Ne4 {[%clk 0:01:40]}  Qc6 {[%clk 0:01:18]} 24. Bf2 {[%clk 0:01:23]}  Nf6 {[%clk 0:01:00]} 25. Qe3 {[%clk 0:00:59]}  b4 {[%clk 0:00:32]} 26. Nxf6+ {[%clk 0:00:55]}  Bxf6 {[%clk 0:00:29]} 27. Qf3 {[%clk 0:00:35]}  Qxf3 {[%clk 0:00:28]} 28. gxf3 {[%clk 0:00:34]}  bxc3 {[%clk 0:00:27]} 29. Rxe8 {[%clk 0:00:14]}  Rxe8 {[%clk 0:00:26]} 30. bxc3 {[%clk 0:00:15]}  Bxf3 {[%clk 0:00:21]} 31. Rd7 {[%clk 0:00:14]}  Re7 {[%clk 0:00:21]} 32. Rxe7 {[%clk 0:00:06]}  Bxe7 {[%clk 0:00:21]} 33. Bd4 {[%clk 0:00:06]}  Bd5 {[%clk 0:00:19]} 34. a4 {[%clk 0:00:05]}  c5 {[%clk 0:00:19]} 35. Be5 {[%clk 0:00:04]}  c4 {[%clk 0:00:19]} 36. f5 {[%clk 0:00:04]}  gxf5 {[%clk 0:00:14]} 37. Bxf5+ {[%clk 0:00:03]}  Kg8 {[%clk 0:00:14]} 38. Kf2 {[%clk 0:00:04]}  f6 {[%clk 0:00:13]} 39. Bd4 {[%clk 0:00:03]}  Bc6 {[%clk 0:00:12]} 40. Bc2 {[%clk 0:00:02]}  Kf7 {[%clk 0:00:12]} 41. Ke3 {[%clk 0:00:02]}  Ke6 {[%clk 0:00:11]} 42. Kf4 {[%clk 0:00:02]}  f5 {[%clk 0:00:11]} 43. Bxf5+ {[%clk 0:00:02]}  Kd6 {[%clk 0:00:09]} 44. Bc2 {[%clk 0:00:03]}  Bd8 {[%clk 0:00:07]} 45. Be5+ {[%clk 0:00:03]}  Kd7 {[%clk 0:00:07]} 46. Bg7 {[%clk 0:00:02]}  Bg5+ {[%clk 0:00:07]} 47. Kg4 {[%clk 0:00:02]}  Bd2 {[%clk 0:00:08]} 48. Kh5 {[%clk 0:00:02]}  Ke6 {[%clk 0:00:06]} 49. Bxh6 {[%clk 0:00:02]}  Bxc3 {[%clk 0:00:06]} 50. Bg5 {[%clk 0:00:01]}  Be5 {[%clk 0:00:06]} 51. h4 {[%clk 0:00:02]}  c3 {[%clk 0:00:06]} 52. Kh6 {[%clk 0:00:01]}  Bf3 {[%clk 0:00:06]} 53. h5 {[%clk 0:00:02]}  Bf6 {[%clk 0:00:05]} 54. Bxf6 {[%clk 0:00:01]}  Kxf6 {[%clk 0:00:05]} 55. a5 {[%clk 0:00:01]}  Ke5 {[%clk 0:00:04]} 56. Kg5 {[%clk 0:00:01]}  Bxh5 {[%clk 0:00:04]} 0-1


[Site "https://www.chess.com"]

[Event "Titled Tuesday Blitz March 15 Late 2022"]
[White "Zhou, Qiyu"]
[Black "Lehtosaari, Mauri"]
[WhiteFideId "505161"]
[BlackFideId "501999"]
[WhiteElo "1925"]
[BlackElo "2458"]
[Result "1-0"]
[Round "09"]
[TimeControl "180+1"]
[Date "2022.03.16"]
[WhiteClock "0:00:08"]
[BlackClock "0:00:10"]

1. e4 {[%clk 0:03:00]}  c5 {[%clk 0:02:53]} 2. Nf3 {[%clk 0:03:00]}  e6 {[%clk 0:02:53]} 3. d4 {[%clk 0:03:00]}  cxd4 {[%clk 0:02:54]} 4. Nxd4 {[%clk 0:03:00]}  Qb6 {[%clk 0:02:54]} 5. Nc3 {[%clk 0:02:59]}  Bc5 {[%clk 0:02:54]} 6. Na4 {[%clk 0:02:37]}  Qa5+ {[%clk 0:02:54]} 7. c3 {[%clk 0:02:34]}  Bxd4 {[%clk 0:02:49]} 8. Qxd4 {[%clk 0:02:33]}  Nf6 {[%clk 0:02:48]} 9. Nc5 {[%clk 0:02:18]}  Nc6 {[%clk 0:02:47]} 10. Qd6 {[%clk 0:02:03]}  b6 {[%clk 0:02:47]} 11. Nb3 {[%clk 0:01:37]}  Qe5 {[%clk 0:02:28]} 12. Qxe5 {[%clk 0:01:31]}  Nxe5 {[%clk 0:02:29]} 13. f3 {[%clk 0:01:31]}  d6 {[%clk 0:02:08]} 14. Be3 {[%clk 0:01:24]}  Bb7 {[%clk 0:01:57]} 15. O-O-O {[%clk 0:01:21]}  Ke7 {[%clk 0:01:57]} 16. Be2 {[%clk 0:01:17]}  Rac8 {[%clk 0:01:54]} 17. g4 {[%clk 0:01:14]}  Nc4 {[%clk 0:01:43]} 18. Bf2 {[%clk 0:01:10]}  e5 {[%clk 0:01:29]} 19. Nd2 {[%clk 0:00:38]}  Nxd2 {[%clk 0:01:26]} 20. Rxd2 {[%clk 0:00:38]}  h6 {[%clk 0:01:09]} 21. Rhd1 {[%clk 0:00:36]}  Rhd8 {[%clk 0:01:09]} 22. h4 {[%clk 0:00:35]}  Bc6 {[%clk 0:01:00]} 23. Kb1 {[%clk 0:00:23]}  Ne8 {[%clk 0:00:51]} 24. c4 {[%clk 0:00:20]}  Nc7 {[%clk 0:00:49]} 25. b3 {[%clk 0:00:20]}  Ne6 {[%clk 0:00:50]} 26. Kb2 {[%clk 0:00:17]}  Nf4 {[%clk 0:00:29]} 27. Bf1 {[%clk 0:00:17]}  g5 {[%clk 0:00:23]} 28. Bg3 {[%clk 0:00:14]}  Ne6 {[%clk 0:00:22]} 29. Bf2 {[%clk 0:00:12]}  f6 {[%clk 0:00:22]} 30. Bg3 {[%clk 0:00:11]}  gxh4 {[%clk 0:00:17]} 31. Bxh4 {[%clk 0:00:11]}  Ng5 {[%clk 0:00:18]} 32. Be2 {[%clk 0:00:06]}  Rd7 {[%clk 0:00:17]} 33. Rh1 {[%clk 0:00:05]}  Rh8 {[%clk 0:00:17]} 34. Rh2 {[%clk 0:00:03]}  Ne6 {[%clk 0:00:16]} 35. Bg3 {[%clk 0:00:02]}  Ng5 {[%clk 0:00:15]} 36. Bd1 {[%clk 0:00:02]}  Rdd8 {[%clk 0:00:14]} 37. Rh5 {[%clk 0:00:03]}  Be8 {[%clk 0:00:13]} 38. Rh4 {[%clk 0:00:02]}  h5 {[%clk 0:00:11]} 39. Rdh2 {[%clk 0:00:03]}  Bf7 {[%clk 0:00:09]} 40. gxh5 {[%clk 0:00:03]}  Be6 {[%clk 0:00:09]} 41. h6 {[%clk 0:00:04]}  Rh7 {[%clk 0:00:09]} 42. Rh5 {[%clk 0:00:04]}  Rdh8 {[%clk 0:00:09]} 43. R5h4 {[%clk 0:00:04]}  Nf7 {[%clk 0:00:09]} 44. Bf2 {[%clk 0:00:04]}  Rxh6 {[%clk 0:00:09]} 45. Rxh6 {[%clk 0:00:02]}  Rxh6 {[%clk 0:00:10]} 46. Rxh6 {[%clk 0:00:02]}  Nxh6 {[%clk 0:00:11]} 47. Be3 {[%clk 0:00:03]}  Nf7 {[%clk 0:00:12]} 48. Kc2 {[%clk 0:00:03]}  f5 {[%clk 0:00:12]} 49. Kd3 {[%clk 0:00:04]}  f4 {[%clk 0:00:12]} 50. Bf2 {[%clk 0:00:04]}  Ng5 {[%clk 0:00:11]} 51. Bh4 {[%clk 0:00:05]}  Kf6 {[%clk 0:00:11]} 52. Be2 {[%clk 0:00:03]}  Kg6 {[%clk 0:00:11]} 53. Be1 {[%clk 0:00:04]}  Bf7 {[%clk 0:00:10]} 54. Bb4 {[%clk 0:00:04]}  Kf6 {[%clk 0:00:08]} 55. Bxd6 {[%clk 0:00:04]}  Bh5 {[%clk 0:00:08]} 56. Bb8 {[%clk 0:00:05]}  Bxf3 {[%clk 0:00:08]} 57. Bxf3 {[%clk 0:00:05]}  Nxf3 {[%clk 0:00:09]} 58. Bxa7 {[%clk 0:00:05]}  Ne1+ {[%clk 0:00:09]} 59. Ke2 {[%clk 0:00:05]}  Nc2 {[%clk 0:00:09]} 60. Bxb6 {[%clk 0:00:05]}  Ke6 {[%clk 0:00:08]} 61. Bf2 {[%clk 0:00:05]}  Nb4 {[%clk 0:00:08]} 62. a3 {[%clk 0:00:05]}  Nc2 {[%clk 0:00:07]} 63. a4 {[%clk 0:00:05]}  Nb4 {[%clk 0:00:07]} 64. Be1 {[%clk 0:00:05]}  Nc6 {[%clk 0:00:06]} 65. b4 {[%clk 0:00:05]}  Nd4+ {[%clk 0:00:06]} 66. Kd3 {[%clk 0:00:05]}  f3 {[%clk 0:00:05]} 67. Ke3 {[%clk 0:00:05]}  Nc2+ {[%clk 0:00:06]} 68. Kxf3 {[%clk 0:00:05]}  Nxe1+ {[%clk 0:00:06]} 69. Ke2 {[%clk 0:00:06]}  Nc2 {[%clk 0:00:06]} 70. b5 {[%clk 0:00:06]}  Nd4+ {[%clk 0:00:06]} 71. Kd3 {[%clk 0:00:06]}  Kd6 {[%clk 0:00:07]} 72. a5 {[%clk 0:00:06]}  Kc5 {[%clk 0:00:07]} 73. a6 {[%clk 0:00:06]}  Kb6 {[%clk 0:00:08]} 74. c5+ {[%clk 0:00:06]}  Kxb5 {[%clk 0:00:06]} 75. a7 {[%clk 0:00:06]}  Ne6 {[%clk 0:00:07]} 76. a8=Q {[%clk 0:00:06]}  Nxc5+ {[%clk 0:00:08]} 77. Ke3 {[%clk 0:00:07]}  Kc4 {[%clk 0:00:08]} 78. Qd5+ {[%clk 0:00:07]}  Kb5 {[%clk 0:00:08]} 79. Qxe5 {[%clk 0:00:08]}  Kc4 {[%clk 0:00:09]} 80. Qd5+ {[%clk 0:00:08]}  Kb5 {[%clk 0:00:10]} 81. Kd4 {[%clk 0:00:08]} 1-0


[Site "https://www.chess.com"]

[Event "Titled Tuesday Blitz March 15 Late 2022"]
[White "Zotova, Anastasia"]
[Black "Vusatiuk, Vladimir"]
[WhiteFideId "34124907"]
[BlackFideId "14118610"]
[WhiteElo "1860"]
[BlackElo "2157"]
[Result "1-0"]
[Round "09"]
[TimeControl "180+1"]
[Date "2022.03.16"]
[WhiteClock "0:00:52"]
[BlackClock "0:00:05"]

1. d4 {[%clk 0:02:58]}  Nf6 {[%clk 0:02:55]} 2. c4 {[%clk 0:02:53]}  e6 {[%clk 0:02:55]} 3. Nf3 {[%clk 0:02:52]}  a6 {[%clk 0:02:43]} 4. g3 {[%clk 0:02:52]}  b5 {[%clk 0:02:42]} 5. b3 {[%clk 0:02:41]}  Bb7 {[%clk 0:02:39]} 6. Bg2 {[%clk 0:02:41]}  Be7 {[%clk 0:02:39]} 7. O-O {[%clk 0:02:40]}  O-O {[%clk 0:02:35]} 8. Nbd2 {[%clk 0:02:40]}  c5 {[%clk 0:02:26]} 9. Qc2 {[%clk 0:02:35]}  cxd4 {[%clk 0:02:23]} 10. Nxd4 {[%clk 0:02:33]}  Bxg2 {[%clk 0:02:24]} 11. Kxg2 {[%clk 0:02:34]}  bxc4 {[%clk 0:02:16]} 12. Nxc4 {[%clk 0:02:31]}  Qc7 {[%clk 0:02:03]} 13. Bb2 {[%clk 0:02:19]}  d5 {[%clk 0:01:58]} 14. Ne3 {[%clk 0:02:12]}  Qxc2 {[%clk 0:01:53]} 15. Ndxc2 {[%clk 0:02:07]}  Nbd7 {[%clk 0:01:45]} 16. Rfd1 {[%clk 0:02:05]}  Rfc8 {[%clk 0:01:43]} 17. Rac1 {[%clk 0:02:05]}  a5 {[%clk 0:01:38]} 18. Nd4 {[%clk 0:02:04]}  Nc5 {[%clk 0:01:35]} 19. Ba3 {[%clk 0:01:54]}  a4 {[%clk 0:01:29]} 20. Bb4 {[%clk 0:01:48]}  axb3 {[%clk 0:01:03]} 21. axb3 {[%clk 0:01:47]}  Rab8 {[%clk 0:00:52]} 22. Ba3 {[%clk 0:01:39]}  Kf8 {[%clk 0:00:34]} 23. Rc2 {[%clk 0:01:27]}  Nce4 {[%clk 0:00:15]} 24. Bxe7+ {[%clk 0:01:19]}  Kxe7 {[%clk 0:00:14]} 25. Nc6+ {[%clk 0:01:19]}  Kd6 {[%clk 0:00:15]} 26. Nxb8 {[%clk 0:01:20]}  Rxb8 {[%clk 0:00:16]} 27. Nc4+ {[%clk 0:01:09]}  Ke7 {[%clk 0:00:15]} 28. Na5 {[%clk 0:01:08]}  Nd7 {[%clk 0:00:14]} 29. Nc6+ {[%clk 0:01:08]}  Kd6 {[%clk 0:00:12]} 30. Nxb8 {[%clk 0:01:09]}  Nxb8 {[%clk 0:00:13]} 31. Rdc1 {[%clk 0:01:08]}  Nd7 {[%clk 0:00:09]} 32. b4 {[%clk 0:01:08]}  Nef6 {[%clk 0:00:05]} 33. Rc6+ {[%clk 0:01:06]}  Ke7 {[%clk 0:00:05]} 34. b5 {[%clk 0:01:06]}  d4 {[%clk 0:00:06]} 35. b6 {[%clk 0:01:06]}  Nd5 {[%clk 0:00:06]} 36. b7 {[%clk 0:01:04]}  Nb4 {[%clk 0:00:05]} 37. Rc7 {[%clk 0:01:02]}  Na6 {[%clk 0:00:03]} 38. R1c6 {[%clk 0:01:00]}  Nb8 {[%clk 0:00:02]} 39. Rxd7+ {[%clk 0:00:51]}  Kxd7 {[%clk 0:00:03]} 40. Rc8 {[%clk 0:00:51]}  Na6 {[%clk 0:00:04]} 41. b8=Q {[%clk 0:00:52]}  Nxb8 {[%clk 0:00:04]} 42. Rxb8 {[%clk 0:00:52]}  e5 {[%clk 0:00:05]} 43. Rb7+ {[%clk 0:00:52]}  Kd6 {[%clk 0:00:05]} 44. Rxf7 {[%clk 0:00:52]} 1-0


[Site "https://www.chess.com"]

[Event "Titled Tuesday Blitz March 15 Late 2022"]
[White "Araujo Filho, Luiz Antonio Coel"]
[Black "Lewtak, Damian"]
[WhiteFideId "2130661"]
[BlackFideId "1141724"]
[WhiteElo "2235"]
[BlackElo "2362"]
[Result "0-1"]
[Round "10"]
[TimeControl "180+1"]
[Date "2022.03.16"]
[WhiteClock "0:00:01"]
[BlackClock "0:00:37"]

1. d4 {[%clk 0:02:44]}  d5 {[%clk 0:02:57]} 2. Nf3 {[%clk 0:02:43]}  Nf6 {[%clk 0:02:54]} 3. e3 {[%clk 0:02:43]}  c6 {[%clk 0:02:52]} 4. Nbd2 {[%clk 0:02:44]}  g6 {[%clk 0:02:52]} 5. Be2 {[%clk 0:02:43]}  Bg7 {[%clk 0:02:52]} 6. b3 {[%clk 0:02:44]}  O-O {[%clk 0:02:52]} 7. Bb2 {[%clk 0:02:45]}  Bg4 {[%clk 0:02:53]} 8. O-O {[%clk 0:02:45]}  Nbd7 {[%clk 0:02:52]} 9. c4 {[%clk 0:02:46]}  Re8 {[%clk 0:02:52]} 10. Rc1 {[%clk 0:02:46]}  Ne4 {[%clk 0:02:52]} 11. Nxe4 {[%clk 0:02:43]}  dxe4 {[%clk 0:02:53]} 12. Nd2 {[%clk 0:02:27]}  Bxe2 {[%clk 0:02:54]} 13. Qxe2 {[%clk 0:02:27]}  f5 {[%clk 0:02:55]} 14. c5 {[%clk 0:02:12]}  Nf6 {[%clk 0:02:48]} 15. Nc4 {[%clk 0:02:10]}  Nd5 {[%clk 0:02:48]} 16. a3 {[%clk 0:02:05]}  Qc7 {[%clk 0:02:46]} 17. b4 {[%clk 0:02:05]}  a6 {[%clk 0:02:45]} 18. Rfd1 {[%clk 0:01:59]}  h5 {[%clk 0:02:42]} 19. h3 {[%clk 0:01:58]}  Kf7 {[%clk 0:02:38]} 20. Rc2 {[%clk 0:01:47]}  Rh8 {[%clk 0:02:37]} 21. f3 {[%clk 0:01:42]}  exf3 {[%clk 0:02:29]} 22. Qxf3 {[%clk 0:01:42]}  Kg8 {[%clk 0:02:17]} 23. e4 {[%clk 0:01:35]}  fxe4 {[%clk 0:02:17]} 24. Qxe4 {[%clk 0:01:35]}  Kh7 {[%clk 0:02:17]} 25. Rf1 {[%clk 0:01:25]}  Rhf8 {[%clk 0:02:17]} 26. Rcf2 {[%clk 0:01:25]}  Rxf2 {[%clk 0:02:16]} 27. Rxf2 {[%clk 0:01:25]}  Rf8 {[%clk 0:02:15]} 28. Rxf8 {[%clk 0:01:25]}  Bxf8 {[%clk 0:02:16]} 29. Ne5 {[%clk 0:01:26]}  Bg7 {[%clk 0:02:08]} 30. Qxg6+ {[%clk 0:01:16]}  Kg8 {[%clk 0:02:07]} 31. Qe8+ {[%clk 0:01:16]}  Kh7 {[%clk 0:02:06]} 32. Qxh5+ {[%clk 0:01:16]}  Kg8 {[%clk 0:02:07]} 33. Qf7+ {[%clk 0:01:07]}  Kh7 {[%clk 0:02:05]} 34. h4 {[%clk 0:00:56]}  e6 {[%clk 0:01:59]} 35. Qxe6 {[%clk 0:00:51]}  Qd8 {[%clk 0:01:43]} 36. Qg6+ {[%clk 0:00:50]}  Kg8 {[%clk 0:01:43]} 37. h5 {[%clk 0:00:50]}  Qh4 {[%clk 0:01:38]} 38. Nf3 {[%clk 0:00:41]}  Qf4 {[%clk 0:01:36]} 39. Qg5 {[%clk 0:00:28]}  Qxg5 {[%clk 0:01:10]} 40. Nxg5 {[%clk 0:00:28]}  Bf6 {[%clk 0:01:10]} 41. Ne4 {[%clk 0:00:27]}  Be7 {[%clk 0:01:09]} 42. Kf2 {[%clk 0:00:24]}  Nf4 {[%clk 0:01:07]} 43. Kf3 {[%clk 0:00:24]}  Nxh5 {[%clk 0:01:07]} 44. g4 {[%clk 0:00:23]}  Ng7 {[%clk 0:01:07]} 45. Kf4 {[%clk 0:00:19]}  Kf7 {[%clk 0:01:06]} 46. Ke5 {[%clk 0:00:17]}  Kg6 {[%clk 0:00:56]} 47. Bc1 {[%clk 0:00:11]}  Kf7 {[%clk 0:00:49]} 48. Nd6+ {[%clk 0:00:11]}  Kg6 {[%clk 0:00:44]} 49. Nxb7 {[%clk 0:00:10]}  Ne8 {[%clk 0:00:43]} 50. Ke6 {[%clk 0:00:10]}  Bf6 {[%clk 0:00:44]} 51. Kd7 {[%clk 0:00:09]}  Ng7 {[%clk 0:00:41]} 52. Kxc6 {[%clk 0:00:09]}  Bxd4 {[%clk 0:00:42]} 53. Nd6 {[%clk 0:00:08]}  Ne6 {[%clk 0:00:39]} 54. Kb7 {[%clk 0:00:06]}  Kf6 {[%clk 0:00:40]} 55. c6 {[%clk 0:00:06]}  Be5 {[%clk 0:00:41]} 56. Nc4 {[%clk 0:00:06]}  Bg3 {[%clk 0:00:40]} 57. Be3 {[%clk 0:00:06]}  Nd8+ {[%clk 0:00:38]} 58. Kc8 {[%clk 0:00:06]}  Nxc6 {[%clk 0:00:37]} 59. Bc5 {[%clk 0:00:04]}  Ke6 {[%clk 0:00:37]} 60. Ne3 {[%clk 0:00:03]}  Bf4 {[%clk 0:00:36]} 61. Ng2 {[%clk 0:00:03]}  Bg5 {[%clk 0:00:36]} 62. Be3 {[%clk 0:00:03]}  Ne7+ {[%clk 0:00:37]} 63. Kc7 {[%clk 0:00:02]}  Bf6 {[%clk 0:00:38]} 64. Bc5 {[%clk 0:00:01]}  Nd5+ {[%clk 0:00:38]} 65. Kc6 {[%clk 0:00:02]}  Be5 {[%clk 0:00:39]} 66. Kb7 {[%clk 0:00:02]}  Nc3 {[%clk 0:00:37]} 67. Kxa6 {[%clk 0:00:01]}  Nb1 {[%clk 0:00:38]} 68. b5 {[%clk 0:00:02]}  Kd5 {[%clk 0:00:38]} 69. Bf2 {[%clk 0:00:01]}  Nxa3 {[%clk 0:00:38]} 70. b6 {[%clk 0:00:02]}  Nc4 {[%clk 0:00:38]} 71. b7 {[%clk 0:00:02]}  Bb8 {[%clk 0:00:39]} 72. Ne1 {[%clk 0:00:01]}  Ne5 {[%clk 0:00:37]} 73. Nc2 {[%clk 0:00:01]}  Nxg4 {[%clk 0:00:37]} 0-1


[Site "https://www.chess.com"]

[Event "Titled Tuesday Blitz March 15 Late 2022"]
[White "Awoki, Daniel Teidi"]
[Black "Toncheva, Nadya"]
[WhiteFideId "2100827"]
[BlackFideId "2924056"]
[WhiteElo "2023"]
[BlackElo "1884"]
[Result "0-1"]
[Round "10"]
[TimeControl "180+1"]
[Date "2022.03.16"]
[WhiteClock "0:00:02"]
[BlackClock "0:00:15"]

1. c4 {[%clk 0:02:57]}  c6 {[%clk 0:02:55]} 2. g3 {[%clk 0:02:57]}  d5 {[%clk 0:02:56]} 3. Bg2 {[%clk 0:02:57]}  dxc4 {[%clk 0:02:54]} 4. Nf3 {[%clk 0:02:58]}  Nf6 {[%clk 0:02:54]} 5. O-O {[%clk 0:02:57]}  Bf5 {[%clk 0:02:54]} 6. a4 {[%clk 0:02:55]}  e6 {[%clk 0:02:53]} 7. Ne5 {[%clk 0:02:51]}  Nbd7 {[%clk 0:02:53]} 8. Nxc4 {[%clk 0:02:49]}  Nb6 {[%clk 0:02:54]} 9. Ne5 {[%clk 0:02:40]}  Nbd7 {[%clk 0:02:54]} 10. Nc4 {[%clk 0:02:32]}  Nb6 {[%clk 0:02:54]} 11. Ne3 {[%clk 0:02:32]}  Bg6 {[%clk 0:02:52]} 12. d3 {[%clk 0:02:32]}  Bd6 {[%clk 0:02:50]} 13. Nc3 {[%clk 0:02:30]}  Nbd5 {[%clk 0:02:48]} 14. Nc4 {[%clk 0:02:14]}  Bc7 {[%clk 0:02:44]} 15. e4 {[%clk 0:02:03]}  Nb4 {[%clk 0:02:37]} 16. d4 {[%clk 0:01:58]}  O-O {[%clk 0:02:34]} 17. Bg5 {[%clk 0:01:42]}  h6 {[%clk 0:02:22]} 18. Bh4 {[%clk 0:01:37]}  Qd7 {[%clk 0:02:14]} 19. Bxf6 {[%clk 0:01:30]}  gxf6 {[%clk 0:02:15]} 20. Qd2 {[%clk 0:01:19]}  Kg7 {[%clk 0:02:11]} 21. Rad1 {[%clk 0:01:10]}  f5 {[%clk 0:02:10]} 22. e5 {[%clk 0:01:03]}  Nd5 {[%clk 0:02:08]} 23. Nxd5 {[%clk 0:01:00]}  cxd5 {[%clk 0:02:08]} 24. Na3 {[%clk 0:00:43]}  Qxa4 {[%clk 0:02:07]} 25. f4 {[%clk 0:00:30]}  Ba5 {[%clk 0:02:02]} 26. Qe2 {[%clk 0:00:26]}  Rac8 {[%clk 0:01:53]} 27. h4 {[%clk 0:00:20]}  Rc6 {[%clk 0:01:14]} 28. h5 {[%clk 0:00:20]}  Bh7 {[%clk 0:01:13]} 29. Rf3 {[%clk 0:00:19]}  Rfc8 {[%clk 0:01:09]} 30. Rfd3 {[%clk 0:00:16]}  b5 {[%clk 0:01:05]} 31. Bf3 {[%clk 0:00:12]}  b4 {[%clk 0:01:03]} 32. Nb1 {[%clk 0:00:10]}  Rc1 {[%clk 0:01:02]} 33. Nd2 {[%clk 0:00:06]}  R8c2 {[%clk 0:00:41]} 34. Qf1 {[%clk 0:00:05]}  Qa1 {[%clk 0:00:20]} 35. Rxc1 {[%clk 0:00:04]}  Rxc1 {[%clk 0:00:20]} 36. Be2 {[%clk 0:00:02]}  Rxf1+ {[%clk 0:00:20]} 37. Bxf1 {[%clk 0:00:03]}  Qe1 {[%clk 0:00:20]} 38. Nf3 {[%clk 0:00:02]}  Qxg3+ {[%clk 0:00:20]} 39. Bg2 {[%clk 0:00:01]}  Qxf4 {[%clk 0:00:16]} 40. Rd2 {[%clk 0:00:02]}  Bg8 {[%clk 0:00:15]} 41. Rc2 {[%clk 0:00:02]}  Bb6 {[%clk 0:00:15]} 0-1


[Site "https://www.chess.com"]

[Event "Titled Tuesday Blitz March 15 Late 2022"]
[White "Aydin, Gulenay"]
[Black "Roberson, Peter T"]
[WhiteFideId "34557431"]
[BlackFideId "412384"]
[WhiteElo "1429"]
[BlackElo "2346"]
[Result "0-1"]
[Round "10"]
[TimeControl "180+1"]
[Date "2022.03.16"]
[WhiteClock "0:00:02"]
[BlackClock "0:01:04"]

1. e4 {[%clk 0:03:00]}  e5 {[%clk 0:03:00]} 2. Nf3 {[%clk 0:03:00]}  Nc6 {[%clk 0:03:00]} 3. Nc3 {[%clk 0:03:00]}  Bc5 {[%clk 0:02:58]} 4. Nxe5 {[%clk 0:02:59]}  Nxe5 {[%clk 0:02:57]} 5. d4 {[%clk 0:02:59]}  Bd6 {[%clk 0:02:58]} 6. dxe5 {[%clk 0:02:59]}  Bxe5 {[%clk 0:02:59]} 7. Bc4 {[%clk 0:02:58]}  Nf6 {[%clk 0:02:57]} 8. O-O {[%clk 0:02:54]}  O-O {[%clk 0:02:56]} 9. Re1 {[%clk 0:02:54]}  d6 {[%clk 0:02:53]} 10. Bg5 {[%clk 0:02:52]}  h6 {[%clk 0:02:51]} 11. Bh4 {[%clk 0:02:45]}  Be6 {[%clk 0:02:51]} 12. Bb3 {[%clk 0:02:41]}  Qd7 {[%clk 0:02:45]} 13. Qd3 {[%clk 0:02:30]}  Nh5 {[%clk 0:02:44]} 14. Bg3 {[%clk 0:02:29]}  Nxg3 {[%clk 0:02:34]} 15. hxg3 {[%clk 0:02:30]}  Rae8 {[%clk 0:02:31]} 16. Rad1 {[%clk 0:02:19]}  Bxb3 {[%clk 0:02:30]} 17. axb3 {[%clk 0:02:19]}  Kh8 {[%clk 0:02:29]} 18. f4 {[%clk 0:02:02]}  Bxc3 {[%clk 0:02:28]} 19. bxc3 {[%clk 0:01:59]}  Qc6 {[%clk 0:02:26]} 20. Re2 {[%clk 0:01:49]}  Re7 {[%clk 0:02:25]} 21. Rde1 {[%clk 0:01:50]}  Rfe8 {[%clk 0:02:25]} 22. c4 {[%clk 0:01:43]}  a6 {[%clk 0:01:47]} 23. Kh2 {[%clk 0:01:36]}  Re6 {[%clk 0:01:36]} 24. Qd4 {[%clk 0:01:28]}  R8e7 {[%clk 0:01:35]} 25. e5 {[%clk 0:01:16]}  Qe8 {[%clk 0:01:29]} 26. Qd5 {[%clk 0:00:29]}  c6 {[%clk 0:01:21]} 27. Qd4 {[%clk 0:00:26]}  dxe5 {[%clk 0:01:21]} 28. Rxe5 {[%clk 0:00:23]}  Rxe5 {[%clk 0:01:20]} 29. Rxe5 {[%clk 0:00:24]}  Rxe5 {[%clk 0:01:21]} 30. fxe5 {[%clk 0:00:25]}  b5 {[%clk 0:01:10]} 31. cxb5 {[%clk 0:00:18]}  cxb5 {[%clk 0:01:11]} 32. g4 {[%clk 0:00:17]}  a5 {[%clk 0:01:10]} 33. Kh3 {[%clk 0:00:15]}  a4 {[%clk 0:01:10]} 34. bxa4 {[%clk 0:00:16]}  bxa4 {[%clk 0:01:11]} 35. c4 {[%clk 0:00:16]}  a3 {[%clk 0:01:11]} 36. c5 {[%clk 0:00:17]}  a2 {[%clk 0:01:08]} 37. Qb2 {[%clk 0:00:16]}  Qa4 {[%clk 0:01:07]} 38. Qa1 {[%clk 0:00:15]}  Qb3+ {[%clk 0:01:06]} 39. Kh2 {[%clk 0:00:09]}  Qb1 {[%clk 0:01:05]} 40. Qd4 {[%clk 0:00:02]}  a1=Q {[%clk 0:01:05]} 41. c6 {[%clk 0:00:02]}  Qxd4 {[%clk 0:01:04]} 0-1


[Site "https://www.chess.com"]